bitfinex-derivatives/quotes_SOLF0:USTF0_20251020
["timestamp","ask_amount","ask_price","bid_price","bid_amount"]
[1760968209775,8.13777311,192.54,192.44,4.6758]
[1760968210168,8.13777311,192.54,192.42,134.54]
[1760968210476,8.13777311,192.58,192.42,134.54]
[1760968210666,12.81057311,192.58,192.42,134.54]
[1760968210865,8.13777311,192.58,192.42,134.54]
[1760968211474,4.6734,192.55,192.45,4.6757]
[1760968211974,4.6729,192.57,192.47,4.6753]
[1760968212769,8.13777311,192.58,192.48,4.6748]
[1760968213382,8.13777311,192.61,192.42,178.5]
[1760968213774,8.13777311,192.61,192.43,43.96]
[1760968214074,8.13777311,192.61,192.5,4.6743]
[1760968214679,3.37185941,192.56,192.5,4.6743]
[1760968214880,3.37185941,192.57,192.5,4.6743]
[1760968216282,3.37185941,192.57,192.47,4.675]
[1760968216479,3.37185941,192.54,192.47,4.675]
[1760968217168,3.37185941,192.58,192.49,4.6747]
[1760968218781,3.37185941,192.58,192.46,4.6752]
[1760968218782,3.37185941,192.55,192.46,4.6752]
[1760968219171,3.37185941,192.55,192.43,43.96]
[1760968219676,3.37185941,192.58,192.43,43.96]
[1760968219874,4.6734,192.55,192.47,4.675]
[1760968220078,3.37185941,192.58,192.43,43.96]
[1760968220079,3.37185941,192.53,192.43,43.96]
[1760968220980,4.674,192.52,192.45,4.6756]
[1760968221181,4.674,192.52,192.43,43.96]
[1760968221687,3.37185941,192.5,192.34,43.98]
[1760968221988,3.37185941,192.47,192.34,43.98]
[1760968222181,3.37185941,192.44,192.34,43.98]
[1760968222490,8.04795941,192.44,192.34,43.98]
[1760968222786,3.37185941,192.41,192.17,12.86301169]
[1760968222979,3.37185941,192.41,192.25,43.98]
[1760968223380,4.6769,192.4,192.3,4.6791]
[1760968223673,3.37185941,192.38,192.25,44.88465978]
[1760968224180,3.37185941,192.41,192.25,44.88465978]
[1760968224384,3.37185941,192.42,192.27,3.37185941]
[1760968224688,8.1559549,192.43,192.29,4.6795]
[1760968224991,8.1559549,192.43,192.25,43.98]
[1760968225476,4.6772,192.39,192.28,4.6796]
[1760968226082,4.6766,192.42,192.29,4.6793]
[1760968226281,4.6766,192.42,192.25,43.98]
[1760968226987,4.6766,192.42,192.3,4.6791]
[1760968227190,8.1559549,192.43,192.3,4.6791]
[1760968227191,4.6769,192.4,192.3,4.6791]
[1760968227490,8.1559549,192.43,192.25,43.98]
[1760968228290,4.6774,192.38,192.29,4.6794]
[1760968228687,4.6774,192.38,192.25,43.98]
[1760968228879,8.1559549,192.43,192.25,43.98]
[1760968229084,9.3501,192.48,192.25,43.98]
[1760968229287,8.1559549,192.45,192.25,43.98]
[1760968229790,8.1559549,192.45,192.34,4.6781]
[1760968229994,8.1559549,192.45,192.25,43.98]
[1760968230294,4.6774,192.38,192.3,4.6791]
[1760968231195,5.40640963,192.39,192.3,4.6791]
[1760968231893,5.40640963,192.39,192.27,4.6798]
[1760968232093,5.40640963,192.35,192.27,4.6798]
[1760968232503,5.40640963,192.35,192.25,43.98]
[1760968233903,10.08380963,192.38,192.28,4.6796]
[1760968234106,5.40640963,192.38,192.17,50.31144584]
[1760968234604,4.6782,192.35,192.17,50.31144584]
[1760968235107,4.6785,192.34,192.17,50.31144584]
[1760968236907,5.40640963,192.38,192.17,50.31144584]
[1760968238010,4.679,192.32,192.17,50.31144584]
[1760968238210,5.40640963,192.38,192.17,50.31144584]
[1760968239913,5.40640963,192.39,192.21,5.40640963]
[1760968240809,5.40640963,192.39,192.27,4.6799]
[1760968241209,4.6774,192.38,192.21,5.40640963]
[1760968241409,4.6774,192.38,192.25,5.40640963]
[1760968242711,5.40640963,192.44,192.3,4.6791]
[1760968243009,15.59,192.43,192.25,5.40640963]
[1760968243311,4.6775,192.38,192.25,5.40640963]
[1760968243513,15.59,192.43,192.25,5.40640963]
[1760968243702,5.40640963,192.44,192.25,5.40640963]
[1760968244699,2.16127228,192.41,192.31,2.16127228]
[1760968244907,6.83797228,192.41,192.32,4.6786]
[1760968245513,4.79815979,192.48,192.27,9.3599]
[1760968245514,2.16127228,192.43,192.27,9.3599]
[1760968245710,2.16127228,192.43,192.33,2.16127228]
[1760968246206,2.16127228,192.41,192.31,2.16127228]
[1760968247716,4.79815979,192.48,192.27,9.3599]
[1760968247717,2.16127228,192.39,192.29,2.16127228]
[1760968248013,2.16127228,192.37,192.22,9.3622]
[1760968248201,2.16127228,192.33,192.22,2.16127228]
[1760968248514,2.16127228,192.31,192.22,2.16127228]
[1760968249713,2.16127228,192.29,192.2,2.16127228]
[1760968250114,2.16127228,192.31,192.24,4.6806]
[1760968250417,2.16127228,192.31,192.22,2.16127228]
[1760968250620,2.16127228,192.31,192.23,4.6809]
[1760968250912,5.40841564,192.35,192.17,17.76503621]
[1760968251912,4.6792,192.31,192.17,17.76503621]
[1760968252506,4.6792,192.31,192.17,0.90503621]
[1760968253003,4.6787,192.33,192.17,0.90503621]
[1760968253410,4.6789,192.32,192.22,4.6811]
[1760968254013,5.40841564,192.35,192.17,0.90503621]
[1760968254014,4.6784,192.34,192.17,0.90503621]
[1760968254317,5.40841564,192.35,192.17,0.90503621]
[1760968254909,4.679,192.32,192.23,4.6808]
[1760968255421,4.679,192.32,192.21,4.6814]
[1760968255613,4.6792,192.31,192.21,4.6814]
[1760968256014,4.6792,192.31,192.22,4.6811]
[1760968257713,5.40841564,192.35,192.23,4.6808]
[1760968258514,5.40841564,192.35,192.17,0.90503621]
[1760968259620,4.6788,192.33,192.24,4.6807]
[1760968260221,4.6788,192.33,192.17,0.90503621]
[1760968260222,5.40841564,192.35,192.25,4.6804]
[1760968260422,5.40841564,192.35,192.18,9.3647]
[1760968260820,5.40841564,192.35,192.27,4.68]
[1760968261027,9.3513,192.46,192.19,5.40841564]
[1760968261028,5.40841564,192.39,192.19,5.40841564]
[1760968261422,10.08571564,192.39,192.3,4.6793]
[1760968261929,5.40841564,192.39,192.19,5.40841564]
[1760968262226,5.40841564,192.39,192.17,0.90503621]
[1760968262813,5.40841564,192.35,192.17,0.90503621]
[1760968263014,5.40841564,192.35,192.15,9.3659]
[1760968263217,5.40841564,192.31,192.14,33.42]
[1760968263424,5.40841564,192.31,192.21,4.6815]
[1760968263425,4.6798,192.29,192.21,4.6815]
[1760968264123,4.6798,192.29,192.19,4.682]
[1760968264326,5.40841564,192.31,192.14,33.42]
[1760968264623,5.40841564,192.26,192.02,12.86301169]
[1760968264828,4.6818,192.21,192.04,38.1]
[1760968265131,5.40841564,192.22,192.06,135.52564859]
[1760968266127,5.40841564,192.22,192.12,4.6836]
[1760968266730,10.09001564,192.22,192.06,135.52564859]
[1760968267330,4.6818,192.21,192.11,4.6838]
[1760968267525,5.40841564,192.2,192.11,4.6838]
[1760968268835,10.08981564,192.22,192.12,4.6836]
[1760968270230,5.40841564,192.25,192.14,4.6833]
[1760968270431,5.40841564,192.21,192.06,41.64564859]
[1760968270926,5.40841564,192.21,192.1,4.6841]
[1760968271127,5.40841564,192.21,192.06,41.64564859]
[1760968271328,5.40841564,192.23,192.06,41.64564859]
[1760968271927,5.40841564,192.23,192.13,4.6834]
[1760968272730,2.16586377,192.18,192.13,4.6834]
[1760968272926,2.16586377,192.18,192.08,2.16586377]
[1760968273127,2.16586377,192.18,192.15,4.6831]
[1760968273328,2.16586377,192.22,192.12,2.16586377]
[1760968273532,2.16586377,192.26,192.16,2.16586377]
[1760968273735,9.3546,192.39,192.06,41.64564859]
[1760968273736,2.16586377,192.28,192.18,2.16586377]
[1760968273930,2.16586377,192.3,192.18,2.16586377]
[1760968274129,8.76598843,192.36,192.17,2.06]
[1760968274330,2.16586377,192.32,192.21,2.16586377]
[1760968274533,2.16586377,192.32,192.23,2.16586377]
[1760968274732,2.16586377,192.32,192.22,2.16586377]
[1760968274930,4.09657417,192.36,192.22,2.16586377]
[1760968275126,2.16586377,192.35,192.24,2.16586377]
[1760968275331,2.16586377,192.33,192.26,4.6804]
[1760968275939,7.69105377,192.33,192.26,4.6804]
[1760968276332,5.52519,192.33,192.24,2.16586377]
[1760968276536,5.52519,192.33,192.26,2.16586377]
[1760968276734,5.52519,192.33,192.21,7.46511713]
[1760968276938,5.52519,192.33,192.3,4.6793]
[1760968277138,5.52519,192.33,192.21,7.46511713]
[1760968277339,5.40511713,192.44,192.36,4.6779]
[1760968277645,175.49654949,192.52,192.21,2.06]
[1760968277646,4.09946204,192.46,192.29,5.40511713]
[1760968277838,4.09985295,192.47,192.3,8.18]
[1760968278036,5.40511713,192.48,192.3,8.18]
[1760968278339,15.5265205,192.52,192.4,4.677]
[1760968278340,8.77325297,192.5,192.4,4.677]
[1760968278538,4.09985677,192.49,192.33,5.40511713]
[1760968278732,4.09985677,192.51,192.33,5.40511713]
[1760968279041,4.09985677,192.51,192.37,5.40511713]
[1760968279241,8.77215506,192.54,192.37,5.40511713]
[1760968279431,8.77215506,192.53,192.37,5.40511713]
[1760968279627,4.09985677,192.52,192.37,5.40511713]
[1760968279833,8.77172877,192.55,192.37,5.40511713]
[1760968280143,4.09985677,192.54,192.37,5.40511713]
[1760968280338,8.77072319,192.55,192.37,5.40511713]
[1760968280639,4.09985677,192.54,192.37,5.40511713]
[1760968280847,4.09985677,192.53,192.37,15.58]
[1760968281138,4.09985677,192.52,192.37,15.58]
[1760968281341,5.40511713,192.5,192.37,15.58]
[1760968281737,5.40511713,192.46,192.31,43.98]
[1760968283141,5.40511713,192.46,192.32,4.6787]
[1760968283742,5.40511713,192.42,192.32,4.6787]
[1760968283947,5.40511713,192.46,192.32,4.6787]
[1760968284151,5.40511713,192.46,192.29,134.74]
[1760968284549,9.49764441,192.5,192.29,134.74]
[1760968284849,5.40511713,192.5,192.4,4.6769]
[1760968285945,5.40511713,192.52,192.4,4.6769]
[1760968286249,14.27102415,192.52,192.42,4.6765]
[1760968286543,4.09217139,192.51,192.31,5.40511713]
[1760968286742,5.40511713,192.52,192.41,4.6767]
[1760968286743,9.49728852,192.52,192.41,4.6767]
[1760968287143,5.40511713,192.54,192.35,5.40511713]
[1760968287543,14.26371883,192.54,192.35,5.40511713]
[1760968287744,4.08723991,192.53,192.43,4.6761]
[1760968287948,4.77007258,192.53,192.41,43.96]
[1760968288334,14.26242962,192.54,192.41,43.96]
[1760968288536,4.08723991,192.53,192.41,43.96]
[1760968288748,5.40511713,192.54,192.41,43.96]
[1760968288950,5.40511713,192.54,192.42,4.6765]
[1760968289244,14.26205412,192.54,192.42,4.6765]
[1760968289446,4.08723991,192.53,192.42,4.6765]
[1760968289740,4.6739,192.53,192.42,4.6765]
[1760968289952,13.53035556,192.53,192.42,4.6765]
[1760968290140,4.08723991,192.52,192.42,4.6765]
[1760968290346,8.76113991,192.53,192.42,4.6765]
[1760968290540,8.76113991,192.53,192.41,43.96]
[1760968290849,5.40511713,192.5,192.41,43.96]
[1760968291242,5.40511713,192.5,192.4,4.677]
[1760968292154,5.40511713,192.5,192.41,4.6765]
[1760968292450,4.6736,192.54,192.36,43.96]
[1760968292451,4.08394128,192.53,192.36,43.96]
[1760968292647,5.40511713,192.54,192.45,4.6756]
[1760968292848,8.85206032,192.56,192.45,4.6756]
[1760968293044,8.85206032,192.56,192.36,43.96]
[1760968293249,8.85206032,192.55,192.36,43.96]
[1760968293450,12.95095949,192.59,192.36,43.96]
[1760968293643,13.66021996,192.58,192.36,43.96]
[1760968293952,8.85079203,192.57,192.36,43.96]
[1760968294145,8.85079203,192.57,192.46,4.6754]
[1760968294354,8.85079203,192.57,192.37,9.3554]
[1760968294649,8.85079203,192.56,192.37,9.3554]
[1760968294951,4.0834729,192.55,192.37,9.3554]
[1760968295251,13.5225436,192.58,192.45,4.6755]
[1760968295447,8.8499436,192.57,192.45,4.6755]
[1760968296345,8.14153156,192.54,192.42,4.6764]
[1760968296549,4.0834729,192.53,192.38,43.58]
[1760968296752,4.0834729,192.53,192.39,4.6771]
[1760968296948,8.8499436,192.53,192.39,4.6771]
[1760968297645,8.8499436,192.53,192.41,4.6767]
[1760968297848,4.0834729,192.52,192.38,43.58]
[1760968298553,8.14153156,192.53,192.38,43.58]
[1760968298951,4.76126748,192.55,192.38,43.58]
[1760968299256,4.07858611,192.56,192.45,4.6756]
[1760968299548,8.83985359,192.56,192.38,43.58]
[1760968299751,8.83985359,192.56,192.45,4.6755]
[1760968301157,8.83985359,192.56,192.46,4.6753]
[1760968302745,8.83985359,192.56,192.43,4.6761]
[1760968303653,4.6743,192.52,192.43,4.6761]
[1760968303950,8.83985359,192.55,192.4,39.68]
[1760968304156,4.07858611,192.54,192.4,39.68]
[1760968304546,4.6735,192.55,192.4,39.68]
[1760968304746,8.83680784,192.56,192.4,39.68]
[1760968305153,4.07858611,192.55,192.4,39.68]
[1760968305354,8.83710969,192.58,192.4,39.68]
[1760968305556,4.07858611,192.57,192.4,39.68]
[1760968305749,4.6733,192.56,192.4,39.68]
[1760968305952,8.14153156,192.55,192.22,134.6]
[1760968306151,8.14153156,192.5,192.24,8.14153156]
[1760968306455,8.14153156,192.45,192.24,17.50333156]
[1760968306652,8.14153156,192.45,192.23,43.92]
[1760968306961,4.6767,192.42,192.29,4.6796]
[1760968307155,4.6767,192.42,192.23,43.92]
[1760968307552,4.676,192.44,192.32,4.6787]
[1760968307861,8.14153156,192.45,192.32,4.6787]
[1760968308060,4.6767,192.42,192.32,4.6787]
[1760968308456,8.14153156,192.45,192.32,4.6787]
[1760968309056,8.14153156,192.45,192.27,43.92]
[1760968309260,4.677,192.41,192.27,43.92]
[1760968309764,8.14153156,192.45,192.32,4.6787]
[1760968310260,8.14153156,192.45,192.3,4.6794]
[1760968310661,4.6767,192.42,192.22,134.6]
[1760968311460,4.6767,192.42,192.23,43.94]
[1760968312059,4.6769,192.41,192.23,43.94]
[1760968312455,4.6769,192.41,192.22,134.6]
[1760968312456,12.81843156,192.41,192.22,134.6]
[1760968312651,12.81843156,192.41,192.23,43.94]
[1760968312858,8.14153156,192.41,192.24,43.94]
[1760968314454,4.6773,192.39,192.24,43.94]
[1760968314959,4.6773,192.39,192.25,4.6805]
[1760968315263,4.09025133,192.4,192.24,43.94]
[1760968315466,4.09025133,192.39,192.24,43.94]
[1760968315763,4.09025133,192.4,192.24,43.94]
[1760968315959,4.6778,192.37,192.25,4.6804]
[1760968316264,4.6778,192.37,192.24,43.94]
[1760968316465,4.12625062,192.36,192.24,43.94]
[1760968316664,4.6778,192.37,192.24,43.94]
[1760968316865,4.72307014,192.4,192.25,4.6806]
[1760968317069,4.6782,192.35,192.25,4.6806]
[1760968317666,8.14153156,192.36,192.26,4.6802]
[1760968318067,4.12678181,192.35,192.24,43.94]
[1760968318375,4.6784,192.35,192.25,4.6805]
[1760968318672,8.14153156,192.36,192.25,4.6805]
[1760968318970,4.12883357,192.35,192.24,43.94]
[1760968319172,4.6779,192.37,192.24,43.94]
[1760968319370,4.1289416,192.36,192.24,43.94]
[1760968319576,4.1289416,192.35,192.24,43.94]
[1760968319766,4.6773,192.39,192.29,4.6795]
[1760968320074,4.12960369,192.38,192.24,43.94]
[1760968320271,8.14153156,192.42,192.24,43.94]
[1760968320571,4.80942793,192.47,192.24,43.94]
[1760968320775,4.676,192.45,192.36,4.6778]
[1760968320972,4.13021654,192.44,192.36,4.6778]
[1760968321162,4.13021654,192.43,192.36,4.6778]
[1760968321471,4.13051978,192.42,192.37,4.6775]
[1760968321772,4.676,192.45,192.32,43.94]
[1760968321974,13.53319353,192.44,192.32,43.94]
[1760968322160,4.12980755,192.43,192.32,43.94]
[1760968322365,4.6762,192.44,192.32,43.94]
[1760968322575,8.14153156,192.42,192.22,134.6]
[1760968322760,8.85727987,192.41,192.25,43.94]
[1760968323069,8.85727987,192.4,192.22,134.6]
[1760968323263,8.14153156,192.37,192.22,178.54]
[1760968323464,4.12978485,192.36,192.22,43.94]
[1760968323671,4.6789,192.33,192.22,43.94]
[1760968324070,4.72215754,192.36,192.22,43.94]
[1760968324269,8.8446378,192.35,192.22,43.94]
[1760968324466,4.12248026,192.34,192.22,43.94]
[1760968324669,4.6791,192.32,192.22,48.6213]
[1760968324872,4.6791,192.32,192.22,43.94]
[1760968325072,12.95095949,192.37,192.22,43.94]
[1760968325073,8.84028089,192.36,192.22,43.94]
[1760968325262,12.95095949,192.37,192.22,43.94]
[1760968325263,8.84028089,192.35,192.22,43.94]
[1760968325469,4.12059003,192.34,192.22,43.94]
[1760968325666,4.12059003,192.33,192.23,4.6809]
[1760968325877,4.12059003,192.35,192.23,4.6809]
[1760968326272,4.71744865,192.36,192.23,4.6809]
[1760968326477,8.14153156,192.37,192.23,4.6809]
[1760968326675,8.14153156,192.37,192.03,16.07876461]
[1760968326676,8.14153156,192.32,192.03,16.07876461]
[1760968326878,8.14153156,192.32,192.07,52.08153156]
[1760968327176,8.14153156,192.32,192.19,4.6819]
[1760968327378,4.6798,192.29,192.19,4.6819]
[1760968327572,8.14153156,192.32,192.16,4.44]
[1760968327878,4.6801,192.28,192.18,4.6822]
[1760968328076,8.14153156,192.32,192.18,4.6822]
[1760968328273,8.14153156,192.32,192.16,4.44]
[1760968328777,4.6804,192.27,192.19,4.6819]
[1760968329681,4.6804,192.27,192.17,4.6825]
[1760968329980,4.6808,192.25,192.17,4.6825]
[1760968330276,8.14153156,192.32,192.17,4.6825]
[1760968330479,8.14153156,192.32,192.13,17.26]
[1760968330674,14.56361338,192.4,192.14,9.3666]
[1760968330675,8.14153156,192.38,192.14,9.3666]
[1760968330871,4.6782,192.35,192.24,4.6807]
[1760968331271,4.11636919,192.36,192.24,4.6807]
[1760968331580,8.14153156,192.38,192.22,4.6813]
[1760968331581,8.82263702,192.37,192.22,4.6813]
[1760968331772,4.11636919,192.36,192.13,25.40153156]
[1760968331972,4.6799,192.28,192.13,25.40153156]
[1760968332173,8.14153156,192.33,192.13,25.40153156]
[1760968332680,4.6799,192.28,192.13,25.40153156]
[1760968332881,8.14153156,192.35,192.13,25.40153156]
[1760968333978,4.6792,192.31,192.22,4.6811]
[1760968334372,4.81656137,192.41,192.13,25.40153156]
[1760968334579,4.6778,192.37,192.26,4.6803]
[1760968334775,8.14153156,192.4,192.26,4.6803]
[1760968335081,4.11224493,192.39,192.26,4.6803]
[1760968335280,8.14153156,192.4,192.26,4.6803]
[1760968335478,8.14153156,192.4,192.18,8.14153156]
[1760968335979,8.14153156,192.45,192.18,8.14153156]
[1760968336481,4.6764,192.43,192.23,8.14153156]
[1760968337779,12.81733156,192.45,192.33,4.6785]
[1760968338081,12.81733156,192.45,192.23,8.14153156]
[1760968338082,12.81733156,192.45,192.24,9.3616]
[1760968338487,12.81733156,192.45,192.33,4.6785]
[1760968338780,4.6762,192.44,192.33,4.6785]
[1760968338983,4.6762,192.44,192.24,9.3616]
[1760968339179,4.6764,192.43,192.24,9.3616]
[1760968339377,8.14153156,192.45,192.24,9.3616]
[1760968339685,8.14153156,192.45,192.33,4.6787]
[1760968339984,8.14153156,192.45,192.25,9.3612]
[1760968340478,4.6761,192.44,192.25,9.3612]
[1760968340987,8.14153156,192.45,192.25,9.3612]
[1760968340988,8.14153156,192.45,192.26,19.22]
[1760968341983,8.14153156,192.45,192.35,4.6781]
[1760968342573,8.14153156,192.45,192.3,24.16]
[1760968342574,4.6748,192.49,192.3,24.16]
[1760968342774,8.14153156,192.5,192.3,24.16]
[1760968342981,4.119386,192.49,192.3,24.16]
[1760968343180,4.119386,192.49,192.38,4.6773]
[1760968344081,8.83200836,192.49,192.36,4.6779]
[1760968344393,8.14153156,192.46,192.33,19.02]
[1760968344582,4.6763,192.43,192.33,19.02]
[1760968345285,4.6763,192.43,192.33,23.6985]
[1760968345586,4.6763,192.43,192.33,4.6785]
[1760968345984,4.12248959,192.45,192.27,9.16]
[1760968346179,9.63312274,192.54,192.27,9.16]
[1760968346180,12.95809293,192.53,192.27,17.30153156]
[1760968346380,8.91143632,192.52,192.27,17.30153156]
[1760968346581,8.79127349,192.51,192.4,4.6768]
[1760968346787,8.91143632,192.5,192.4,4.6768]
[1760968346992,4.11677349,192.49,192.4,4.6768]
[1760968347184,4.11677349,192.49,192.28,9.3598]
[1760968347482,4.11677349,192.48,192.27,8.14153156]
[1760968347791,8.79117349,192.51,192.29,14.36]
[1760968347990,8.91239788,192.5,192.29,14.36]
[1760968348189,4.11677349,192.49,192.3,9.3588]
[1760968348490,4.11677349,192.48,192.39,4.677]
[1760968348691,8.91239788,192.49,192.39,4.677]
[1760968348884,13.58759788,192.48,192.37,4.6776]
[1760968349089,4.11677349,192.47,192.37,4.6776]
[1760968349504,4.6752,192.48,192.37,4.6776]
[1760968349878,4.11962715,192.51,192.32,20.8]
[1760968350279,4.11962715,192.51,192.3,9.3588]
[1760968350490,4.6752,192.48,192.37,4.6775]
[1760968350878,8.14153156,192.52,192.3,9.3588]
[1760968351085,4.6746,192.5,192.4,4.6768]
[1760968351686,4.6751,192.48,192.38,4.6774]
[1760968352680,4.6751,192.48,192.39,4.6771]
[1760968352885,4.6746,192.5,192.32,22.16]
[1760968353498,8.14153156,192.55,192.32,22.16]
[1760968353692,4.1166732,192.54,192.32,22.16]
[1760968353897,4.1166732,192.54,192.33,9.3574]
[1760968354095,8.7903732,192.54,192.43,4.6761]
[1760968354304,8.14153156,192.55,192.32,30.30153156]
[1760968354508,8.14153156,192.55,192.45,4.6756]
[1760968354696,5.39621607,192.55,192.45,4.6756]
[1760968355000,5.39621607,192.55,192.35,9.3562]
[1760968355194,5.39621607,192.5,192.41,4.6766]
[1760968355995,10.07081607,192.5,192.41,4.6766]
[1760968356195,5.39621607,192.5,192.3,9.3587]
[1760968356503,5.39621607,192.5,192.31,34.58]
[1760968356894,5.39621607,192.5,192.39,4.6771]
[1760968357100,5.39621607,192.5,192.32,40.46]
[1760968357798,5.39621607,192.54,192.34,9.3569]
[1760968358000,5.39621607,192.54,192.33,5.39621607]
[1760968358203,5.39621607,192.54,192.45,4.6756]
[1760968358999,5.39621607,192.54,192.35,9.3564]
[1760968359302,5.39621607,192.54,192.39,26.3]
[1760968359805,5.39621607,192.54,192.38,35.16]
[1760968360207,5.39621607,192.54,192.42,4.6764]
[1760968360505,5.39621607,192.54,192.38,35.16]
[1760968360803,5.39621607,192.54,192.35,9.3564]
[1760968360999,5.39621607,192.54,192.37,40.82]
[1760968361208,5.39621607,192.54,192.36,12.1]
[1760968361500,5.39621607,192.5,192.35,9.3564]
[1760968361707,5.39621607,192.5,192.36,22.02]
[1760968362408,5.39621607,192.5,192.36,32.8]
[1760968362711,5.39621607,192.5,192.36,43.04]
[1760968362906,5.39621607,192.5,192.4,4.6769]
[1760968363099,4.6748,192.49,192.36,43.04]
[1760968363404,4.6748,192.49,192.3,14.75501607]
[1760968363405,4.6748,192.49,192.4,4.6768]
[1760968363803,5.39621607,192.5,192.3,5.39621607]
[1760968364005,5.39621607,192.5,192.34,38.46]
[1760968364809,5.39621607,192.5,192.34,37.22]
[1760968365004,5.39621607,192.5,192.32,9.3578]
[1760968365208,5.39621607,192.5,192.34,42.6]
[1760968365409,5.39621607,192.5,192.35,12.1]
[1760968365799,5.39621607,192.5,192.43,4.6761]
[1760968365998,5.39621607,192.5,192.35,12.1]
[1760968367409,5.39621607,192.5,192.44,4.6759]
[1760968368304,5.39621607,192.5,192.42,4.6764]
[1760968368614,5.39621607,192.5,192.34,9.3568]
[1760968368615,5.39621607,192.5,192.36,19.24]
[1760968369113,5.39621607,192.5,192.34,9.3568]
[1760968369319,5.39621607,192.5,192.35,28.46]
[1760968369517,5.39621607,192.5,192.43,4.6761]
[1760968370617,5.39621607,192.5,192.41,4.6766]
[1760968371717,5.39621607,192.5,192.35,28.46]
[1760968371718,5.39621607,192.5,192.42,4.6764]
[1760968371929,5.39621607,192.5,192.35,28.46]
[1760968372409,4.10458729,192.55,192.36,9.3558]
[1760968372612,5.39621607,192.53,192.36,9.3558]
[1760968373417,4.6742,192.52,192.44,4.6759]
[1760968375529,4.6742,192.52,192.37,9.3551]
[1760968375727,5.39621607,192.53,192.35,28.46]
[1760968376328,4.6732,192.56,192.35,28.46]
[1760968376931,4.6732,192.56,192.48,4.6749]
[1760968377129,5.39621607,192.57,192.38,5.39621607]
[1760968377634,10.06921607,192.57,192.48,4.6748]
[1760968377824,10.06921607,192.57,192.38,5.39621607]
[1760968378225,10.06921607,192.57,192.41,9.3535]
[1760968379227,10.06921607,192.57,192.49,4.6747]
[1760968380035,8.92916545,192.56,192.35,5.39621607]
[1760968380336,5.39621607,192.53,192.36,38.76]
[1760968380837,5.39621607,192.53,192.37,9.3555]
[1760968381136,5.39621607,192.53,192.36,38.76]
[1760968381337,5.39621607,192.53,192.47,4.6751]
[1760968382126,5.39621607,192.57,192.39,5.39621607]
[1760968382326,4.83389765,192.56,192.39,5.39621607]
[1760968382532,5.39621607,192.57,192.4,43.9]
[1760968382735,8.9377859,192.56,192.4,43.9]
[1760968382936,8.9377859,192.56,192.26,16.11393879]
[1760968382937,5.39621607,192.53,192.32,5.39621607]
[1760968383235,8.9377859,192.55,192.33,41.98]
[1760968383236,5.39621607,192.49,192.33,41.98]
[1760968383642,5.39621607,192.45,192.33,41.98]
[1760968384027,5.39621607,192.47,192.33,41.98]
[1760968384736,5.39621607,192.51,192.43,4.6761]
[1760968384929,5.39621607,192.51,192.33,41.98]
[1760968385434,5.39621607,192.51,192.34,43.9]
[1760968385630,5.39621607,192.51,192.43,4.6762]
[1760968385936,4.83544882,192.5,192.35,9.3563]
[1760968386132,5.39621607,192.51,192.35,9.3563]
[1760968386639,5.39621607,192.51,192.43,4.6761]
[1760968387138,5.39621607,192.51,192.35,9.3563]
[1760968388734,5.39621607,192.51,192.44,4.6759]
[1760968389040,8.94876382,192.54,192.36,14.75201607]
[1760968389340,5.39621607,192.55,192.36,5.39621607]
[1760968389526,8.95165455,192.54,192.46,4.6754]
[1760968389730,5.39621607,192.58,192.36,5.39621607]
[1760968389925,8.95251962,192.57,192.36,5.39621607]
[1760968390140,4.11120412,192.56,192.36,18.2873671]
[1760968390336,5.39621607,192.58,192.36,18.2873671]
[1760968390643,8.95491368,192.57,192.36,18.2873671]
[1760968390834,4.11229014,192.56,192.38,9.3548]
[1760968391032,5.39621607,192.54,192.39,43.9]
[1760968391237,8.95387427,192.53,192.39,43.9]
[1760968391432,8.95456996,192.52,192.39,43.9]
[1760968391739,4.11190073,192.51,192.43,4.6762]
[1760968391939,4.6742,192.52,192.43,4.6762]
[1760968392327,5.39621607,192.5,192.39,43.9]
[1760968393833,10.07081607,192.5,192.39,43.9]
[1760968394037,8.9559292,192.49,192.39,43.9]